[Event "MČR družstev mladších žáků 2024"]
[Site "Harrachov, Czech Republic"]
[Date "2024.06.15"]
[Round "3.8"]
[White "Vorlik Jachym"]
[Black "Artamonov Mikhail"]
[Result "0-1"]
[TimeControl "25+10"]
[WhiteFideId "23750901"]
[BlackFideId "23732946"]
[WhiteElo "1388"]
[BlackElo "1515"]

1. e4 {[%clk 00:25:18]} {[%emt 00:00:01]} e6 {[%clk 00:25:19]} {[%emt
00:00:01]} 2. d4 {[%clk 00:25:27]} {[%emt 00:00:02]} d5 {[%clk 00:25:28]} 3.
exd5 {[%clk 00:25:35]} {[%emt 00:00:02]} exd5 {[%clk 00:25:36]} {[%emt
00:00:01]} 4. Bd3 {[%clk 00:25:33]} {[%emt 00:00:12]} Bd6 {[%clk 00:25:43]}
{[%emt 00:00:03]} 5. Nf3 {[%clk 00:25:37]} {[%emt 00:00:06]} Bg4 {[%clk
00:25:40]} {[%emt 00:00:14]} 6. O-O {[%clk 00:25:36]} {[%emt 00:00:12]} Ne7
{[%clk 00:25:46]} {[%emt 00:00:04]} 7. c3 {[%clk 00:25:24]} {[%emt 00:00:22]}
Qd7 {[%clk 00:25:40]} {[%emt 00:00:15]} 8. Be3 {[%clk 00:23:53]} {[%emt
00:01:41]} Nbc6 {[%clk 00:24:27]} {[%emt 00:01:23]} 9. Nbd2 {[%clk 00:23:27]}
{[%emt 00:00:36]} O-O {[%clk 00:23:05]} {[%emt 00:01:32]} 10. h3 {[%clk
00:18:52]} {[%emt 00:04:45]} Bh5 {[%clk 00:22:14]} {[%emt 00:01:01]} 11. Qc2
{[%clk 00:14:58]} {[%emt 00:04:04]} Bg6 {[%clk 00:21:17]} {[%emt 00:01:04]} 12.
a3 {[%clk 00:13:32]} {[%emt 00:01:39]} Bxd3 {[%clk 00:19:05]} {[%emt 00:02:22]}
13. Qxd3 {[%clk 00:13:28]} {[%emt 00:00:14]} Nf5 {[%clk 00:18:53]} {[%emt
00:00:22]} 14. c4 {[%clk 00:10:54]} {[%emt 00:02:45]} dxc4 {[%clk 00:13:42]}
{[%emt 00:05:22]} 15. Nxc4 {[%clk 00:09:54]} {[%emt 00:01:10]} b5 {[%clk
00:13:24]} {[%emt 00:00:28]} 16. Nxd6 {[%clk 00:09:30]} {[%emt 00:00:34]} Nxd6
{[%clk 00:13:30]} {[%emt 00:00:04]} 17. Rfd1 {[%clk 00:06:45]} {[%emt
00:02:56]} f6 {[%clk 00:11:56]} {[%emt 00:01:43]} 18. Bf4 {[%clk 00:04:19]}
{[%emt 00:02:36]} a6 {[%clk 00:08:25]} {[%emt 00:03:41]} 19. Bxd6 {[%clk
00:03:41]} {[%emt 00:00:47]} Qxd6 {[%clk 00:08:10]} {[%emt 00:00:25]} 20. Qb3+
{[%clk 00:03:05]} {[%emt 00:00:46]} Kh8 {[%clk 00:08:14]} {[%emt 00:00:06]} 21.
Rac1 {[%clk 00:02:55]} {[%emt 00:00:20]} Ne7 {[%clk 00:06:47]} {[%emt
00:01:38]} 22. Qc3 {[%clk 00:02:42]} {[%emt 00:00:22]} c6 {[%clk 00:05:49]}
{[%emt 00:01:08]} 23. Qc5 {[%clk 00:02:23]} {[%emt 00:00:29]} Qxc5 {[%clk
00:04:15]} {[%emt 00:01:44]} 24. Rxc5 {[%clk 00:02:21]} {[%emt 00:00:12]} Rfd8
{[%clk 00:02:55]} {[%emt 00:01:29]} 25. g4 {[%clk 00:02:01]} {[%emt 00:00:32]}
Rd6 {[%clk 00:02:20]} {[%emt 00:00:45]} 26. b4 {[%clk 00:01:43]} {[%emt
00:00:28]} Nd5 {[%clk 00:02:00]} {[%emt 00:00:30]} 27. Nd2 {[%clk 00:01:37]}
{[%emt 00:00:16]} Re8 {[%clk 00:01:37]} {[%emt 00:00:33]} 28. Kg2 {[%clk
00:01:21]} {[%emt 00:00:27]} Nf4+ {[%clk 00:01:37]} {[%emt 00:00:10]} 29. Kh2
{[%clk 00:01:02]} {[%emt 00:00:29]} Ne6 {[%clk 00:01:45]} {[%emt 00:00:02]} 30.
Rc3 {[%clk 00:01:02]} {[%emt 00:00:11]} Nxd4 {[%clk 00:01:26]} {[%emt
00:00:28]} 31. Kg2 {[%clk 00:00:52]} {[%emt 00:00:19]} Ne2 {[%clk 00:01:09]}
{[%emt 00:00:27]} 32. Re3 {[%clk 00:00:48]} {[%emt 00:00:14]} Rxe3 {[%clk
00:01:14]} {[%emt 00:00:05]} 33. fxe3 {[%clk 00:00:57]} {[%emt 00:00:01]} Nc3
{[%clk 00:01:23]} {[%emt 00:00:01]} 34. Rc1 {[%clk 00:00:53]} {[%emt 00:00:13]}
Rxd2+ {[%clk 00:01:32]} {[%emt 00:00:01]} 35. Kf3 {[%clk 00:01:02]} {[%emt
00:00:02]} Rd3 {[%clk 00:01:19]} {[%emt 00:00:23]} 36. h4 {[%clk 00:01:07]}
{[%emt 00:00:05]} Kg8 {[%clk 00:01:20]} {[%emt 00:00:09]} 37. g5 {[%clk
00:01:11]} {[%emt 00:00:06]} fxg5 {[%clk 00:01:24]} {[%emt 00:00:06]} 38. hxg5
{[%clk 00:01:20]} {[%emt 00:00:01]} Kf7 {[%clk 00:01:30]} {[%emt 00:00:03]} 39.
Rc2 {[%clk 00:01:16]} {[%emt 00:00:14]} Ke7 {[%clk 00:01:24]} {[%emt 00:00:17]}
40. Rh2 {[%clk 00:01:10]} {[%emt 00:00:17]} Nd5 {[%clk 00:01:29]} {[%emt
00:00:05]} 41. Rxh7 {[%clk 00:01:06]} {[%emt 00:00:14]} Rxe3+ {[%clk 00:01:35]}
{[%emt 00:00:04]} 42. Kg4 {[%clk 00:01:13]} {[%emt 00:00:04]} Kf7 {[%clk
00:01:40]} {[%emt 00:00:05]} 43. Kf5 {[%clk 00:01:03]} {[%emt 00:00:19]} Ne7+
{[%clk 00:01:39]} {[%emt 00:00:11]} 44. Kf4 {[%clk 00:01:09]} {[%emt 00:00:04]}
Rxa3 {[%clk 00:01:46]} {[%emt 00:00:03]} 45. Rh1 {[%clk 00:00:55]} {[%emt
00:00:24]} Rb3 {[%clk 00:01:51]} {[%emt 00:00:05]} 46. Rf1 {[%clk 00:00:56]}
{[%emt 00:00:09]} Kg6 {[%clk 00:01:52]} {[%emt 00:00:09]} 47. Ke5 {[%clk
00:00:46]} {[%emt 00:00:20]} Rxb4 {[%clk 00:01:55]} {[%emt 00:00:08]} 48. Ke6
{[%clk 00:00:50]} {[%emt 00:00:06]} Re4+ {[%clk 00:02:03]} {[%emt 00:00:03]} 49.
Kd6 {[%clk 00:00:55]} {[%emt 00:00:04]} a5 {[%clk 00:02:09]} {[%emt 00:00:05]}
50. Kc5 {[%clk 00:00:57]} {[%emt 00:00:07]} a4 {[%clk 00:02:01]} {[%emt
00:00:19]} 51. Rf3 {[%clk 00:01:04]} {[%emt 00:00:03]} Rc4+ {[%clk 00:01:57]}
{[%emt 00:00:14]} 52. Kd6 {[%clk 00:01:06]} {[%emt 00:00:08]} Nf5+ {[%clk
00:02:03]} {[%emt 00:00:04]} 53. Ke5 {[%clk 00:01:06]} {[%emt 00:00:09]} a3
{[%clk 00:01:48]} {[%emt 00:00:25]} 54. Rxa3 {[%clk 00:00:44]} {[%emt
00:00:33]} b4 {[%clk 00:01:32]} {[%emt 00:00:26]} 55. Rb3 {[%clk 00:00:32]}
{[%emt 00:00:22]} c5 {[%clk 00:01:27]} {[%emt 00:00:15]} 56. Rb2 {[%clk
00:00:18]} {[%emt 00:00:24]} Rc3 {[%clk 00:01:25]} {[%emt 00:00:12]} 57. Ke4
{[%clk 00:00:14]} {[%emt 00:00:14]} b3 {[%clk 00:01:23]} {[%emt 00:00:12]} 0-1



[ePGN "0.1;DGT LiveChess/2.2.6"]

[Event "MČR družstev mladších žáků 2024"]
[Site "Harrachov, Czech Republic"]
[Date "2024.06.15"]
[Round "3.9"]
[White "Kolar Edvard"]
[Black "Bartak Tobias"]
[Result "1-0"]
[TimeControl "25+10"]
[WhiteFideId "23746238"]
[BlackFideId "23753544"]
[WhiteElo "1553"]
[BlackElo "1260"]

1. e4 {[%clk 00:25:20]} e5 {[%clk 00:25:18]} {[%emt 00:00:03]} 2. Nf3 {[%clk
00:25:28]} Nc6 {[%clk 00:25:26]} {[%emt 00:00:02]} 3. Bc4 {[%clk 00:25:36]} Bc5
{[%clk 00:25:27]} {[%emt 00:00:10]} 4. b4 {[%clk 00:25:45]} {[%emt 00:00:02]}
Bxb4 {[%clk 00:25:32]} {[%emt 00:00:06]} 5. c3 {[%clk 00:25:53]} {[%emt
00:00:01]} Be7 {[%clk 00:25:33]} {[%emt 00:00:09]} 6. d4 {[%clk 00:26:01]}
{[%emt 00:00:02]} Na5 {[%clk 00:25:24]} {[%emt 00:00:19]} 7. Nxe5 {[%clk
00:24:03]} {[%emt 00:02:08]} Nxc4 {[%clk 00:25:14]} {[%emt 00:00:20]} 8. Nxc4
{[%clk 00:24:10]} {[%emt 00:00:03]} d5 {[%clk 00:24:42]} {[%emt 00:00:41]} 9.
exd5 {[%clk 00:23:53]} {[%emt 00:00:28]} Qxd5 {[%clk 00:24:25]} {[%emt
00:00:27]} 10. Ne3 {[%clk 00:23:49]} {[%emt 00:00:14]} Qd6 {[%clk 00:23:01]}
{[%emt 00:01:33]} 11. Nd2 {[%clk 00:22:33]} {[%emt 00:01:26]} Nf6 {[%clk
00:21:08]} {[%emt 00:02:03]} 12. O-O {[%clk 00:21:30]} {[%emt 00:01:13]} O-O
{[%clk 00:19:59]} {[%emt 00:01:19]} 13. Re1 {[%clk 00:20:06]} {[%emt 00:01:35]}
Be6 {[%clk 00:17:23]} {[%emt 00:02:46]} 14. Bb2 {[%clk 00:15:14]} {[%emt
00:05:02]} c6 {[%clk 00:14:16]} {[%emt 00:03:18]} 15. c4 {[%clk 00:12:55]}
{[%emt 00:02:29]} Rac8 {[%clk 00:10:43]} {[%emt 00:03:43]} 16. Nf3 {[%clk
00:09:15]} {[%emt 00:03:49]} Qb4 {[%clk 00:04:01]} {[%emt 00:06:52]} 17. Rb1
{[%clk 00:08:30]} {[%emt 00:00:56]} Qa5 {[%clk 00:02:24]} {[%emt 00:01:46]} 18.
d5 {[%clk 00:04:25]} {[%emt 00:04:15]} Rfd8 {[%clk 00:01:31]} {[%emt 00:01:03]}
19. Bxf6 {[%clk 00:03:52]} {[%emt 00:00:43]} Bxf6 {[%clk 00:01:34]} {[%emt
00:00:07]} 20. d6 {[%clk 00:03:59]} {[%emt 00:00:03]} Qxa2 {[%clk 00:00:44]}
{[%emt 00:01:00]} 21. Rxb7 {[%clk 00:02:56]} {[%emt 00:01:13]} Rb8 {[%clk
00:00:17]} {[%emt 00:00:37]} 22. Rc7 {[%clk 00:02:15]} {[%emt 00:00:51]} Rbc8
{[%clk 00:00:13]} {[%emt 00:00:13]} 23. Rxc8 {[%clk 00:01:43]} {[%emt
00:00:42]} Rxc8 {[%clk 00:00:22]} {[%emt 00:00:01]} 24. h3 {[%clk 00:01:25]}
{[%emt 00:00:26]} h6 {[%clk 00:00:15]} {[%emt 00:00:17]} 25. Nd4 {[%clk
00:01:25]} {[%emt 00:00:10]} Bd7 {[%clk 00:00:15]} {[%emt 00:00:11]} 26. Nef5
{[%clk 00:01:25]} {[%emt 00:00:10]} Qxc4 {[%clk 00:00:15]} {[%emt 00:00:10]} 27.
Ne7+ {[%clk 00:01:28]} {[%emt 00:00:06]} Bxe7 {[%clk 00:00:20]} {[%emt
00:00:05]} 28. Rxe7 {[%clk 00:00:42]} {[%emt 00:00:56]} Rd8 {[%clk 00:00:13]}
{[%emt 00:00:17]} 29. Nf3 {[%clk 00:00:37]} {[%emt 00:00:15]} Be6 {[%clk
00:00:12]} {[%emt 00:00:11]} 30. d7 {[%clk 00:00:27]} {[%emt 00:00:20]} 1-0



[ePGN "0.1;DGT LiveChess/2.2.6"]

[Event "MČR družstev mladších žáků 2024"]
[Site "Harrachov, Czech Republic"]
[Date "2024.06.15"]
[Round "4.1"]
[White "Vancakova Veronika"]
[Black "Zrust Lukas"]
[Result "1-0"]
[TimeControl "25+10"]
[WhiteFideId "23731907"]
[BlackFideId "23736666"]
[WhiteElo "1437"]
[BlackElo "1742"]

1. d4 {[%clk 00:25:19]} {[%emt 00:02:54]} Nf6 {[%clk 00:25:19]} {[%emt
00:00:02]} 2. c4 {[%clk 00:25:28]} {[%emt 00:00:01]} g6 {[%clk 00:25:27]}
{[%emt 00:00:01]} 3. Nc3 {[%clk 00:25:37]} Bg7 {[%clk 00:25:36]} {[%emt
00:00:01]} 4. e4 {[%clk 00:25:46]} d6 {[%clk 00:25:45]} {[%emt 00:00:02]} 5.
Nf3 {[%clk 00:25:54]} {[%emt 00:00:02]} O-O {[%clk 00:25:48]} {[%emt 00:00:08]}
6. Be2 {[%clk 00:26:03]} {[%emt 00:00:01]} Nbd7 {[%clk 00:25:55]} {[%emt
00:00:03]} 7. O-O {[%clk 00:26:10]} {[%emt 00:00:03]} e5 {[%clk 00:26:02]}
{[%emt 00:00:03]} 8. d5 {[%clk 00:26:18]} {[%emt 00:00:02]} Nc5 {[%clk
00:26:10]} {[%emt 00:00:02]} 9. Qc2 {[%clk 00:26:23]} {[%emt 00:00:05]} a5
{[%clk 00:26:19]} 10. Ne1 {[%clk 00:26:23]} {[%emt 00:00:10]} Re8 {[%clk
00:25:10]} {[%emt 00:01:19]} 11. f3 {[%clk 00:26:07]} {[%emt 00:00:26]} Nh5
{[%clk 00:23:47]} {[%emt 00:01:33]} 12. Nd3 {[%clk 00:24:28]} {[%emt 00:01:49]}
Nxd3 {[%clk 00:23:23]} {[%emt 00:00:35]} 13. Bxd3 {[%clk 00:24:36]} {[%emt
00:00:02]} Nf4 {[%clk 00:21:34]} {[%emt 00:01:59]} 14. Be3 {[%clk 00:24:06]}
{[%emt 00:00:40]} Nxd3 {[%clk 00:20:15]} {[%emt 00:01:29]} 15. Qxd3 {[%clk
00:24:14]} {[%emt 00:00:02]} f5 {[%clk 00:19:50]} {[%emt 00:00:35]} 16. Rac1
{[%clk 00:23:47]} {[%emt 00:00:36]} f4 {[%clk 00:19:04]} {[%emt 00:00:56]} 17.
Bf2 {[%clk 00:23:56]} {[%emt 00:00:01]} g5 {[%clk 00:18:39]} {[%emt 00:00:35]}
18. c5 {[%clk 00:23:26]} {[%emt 00:00:40]} dxc5 {[%clk 00:15:23]} {[%emt
00:03:26]} 19. Bxc5 {[%clk 00:23:26]} {[%emt 00:00:09]} b6 {[%clk 00:15:14]}
{[%emt 00:00:19]} 20. Bf2 {[%clk 00:23:27]} {[%emt 00:00:09]} Ba6 {[%clk
00:15:23]} {[%emt 00:00:01]} 21. Nb5 {[%clk 00:23:10]} {[%emt 00:00:27]} Qd7
{[%clk 00:14:47]} {[%emt 00:00:47]} 22. a4 {[%clk 00:20:51]} {[%emt 00:02:29]}
Bxb5 {[%clk 00:13:44]} {[%emt 00:01:13]} 23. Qxb5 {[%clk 00:21:00]} {[%emt
00:00:02]} Qxb5 {[%clk 00:13:09]} {[%emt 00:00:45]} 24. axb5 {[%clk 00:21:08]}
{[%emt 00:00:01]} Ra7 {[%clk 00:08:33]} {[%emt 00:04:46]} 25. Rc6 {[%clk
00:20:51]} {[%emt 00:00:27]} Rd8 {[%clk 00:06:55]} {[%emt 00:01:47]} 26. Rfc1
{[%clk 00:19:50]} {[%emt 00:01:10]} Rd7 {[%clk 00:06:34]} {[%emt 00:00:31]} 27.
d6 {[%clk 00:18:27]} {[%emt 00:01:33]} cxd6 {[%clk 00:05:56]} {[%emt 00:00:48]}
28. Bxb6 {[%clk 00:18:27]} {[%emt 00:00:10]} Rab7 {[%clk 00:05:13]} {[%emt
00:00:52]} 29. Rd1 {[%clk 00:18:00]} {[%emt 00:00:36]} Bf8 {[%clk 00:04:53]}
{[%emt 00:00:31]} 30. Rd5 {[%clk 00:17:59]} {[%emt 00:00:11]} a4 {[%clk
00:04:31]} {[%emt 00:00:32]} 31. Ba5 {[%clk 00:16:25]} {[%emt 00:01:44]} Kf7
{[%clk 00:02:17]} {[%emt 00:02:23]} 32. Kf2 {[%clk 00:15:34]} {[%emt 00:01:01]}
Rb8 {[%clk 00:01:19]} {[%emt 00:01:09]} 33. Ke2 {[%clk 00:15:32]} {[%emt
00:00:11]} Rdb7 {[%clk 00:00:50]} {[%emt 00:00:39]} 34. Rc7+ {[%clk 00:13:16]}
{[%emt 00:02:26]} Ke6 {[%clk 00:00:52]} {[%emt 00:00:09]} 35. Rxb7 {[%clk
00:12:07]} {[%emt 00:01:19]} Rxb7 {[%clk 00:01:01]} 36. Kd3 {[%clk 00:10:51]}
{[%emt 00:01:26]} Be7 {[%clk 00:00:14]} {[%emt 00:00:58]} 37. Kc4 {[%clk
00:10:03]} {[%emt 00:00:58]} h5 {[%clk 00:00:14]} {[%emt 00:00:10]} 38. b6
{[%clk 00:07:10]} {[%emt 00:03:03]} g4 {[%clk 00:00:18]} {[%emt 00:00:06]} 39.
Kb5 {[%clk 00:07:07]} {[%emt 00:00:12]} Kd7 {[%clk 00:00:17]} {[%emt 00:00:11]}
40. Ka6 {[%clk 00:06:37]} {[%emt 00:00:40]} Kc8 {[%clk 00:00:16]} {[%emt
00:00:11]} 41. Rd2 {[%clk 00:05:15]} {[%emt 00:01:31]} Kb8 {[%clk 00:00:15]}
{[%emt 00:00:11]} 42. Bc3 {[%clk 00:04:30]} {[%emt 00:00:55]} g3 {[%clk
00:00:16]} {[%emt 00:00:09]} 43. h3 {[%clk 00:03:57]} {[%emt 00:00:42]} h4
{[%clk 00:00:24]} {[%emt 00:00:02]} 44. Rd5 {[%clk 00:03:08]} {[%emt 00:00:59]}
Rd7 {[%clk 00:00:18]} {[%emt 00:00:16]} 45. Bxe5 {[%clk 00:03:05]} {[%emt
00:00:12]} Rd8 {[%emt 00:00:18]} 1-0



[ePGN "0.1;DGT LiveChess/2.2.6"]

[Event "MČR družstev mladších žáků 2024"]
[Site "Harrachov, Czech Republic"]
[Date "2024.06.15"]
[Round "4.10"]
[White "Hamernikova Iris"]
[Black "Vratny Vojtech"]
[Result "0-1"]
[TimeControl "25+10"]
[WhiteFideId "23745738"]
[BlackFideId "23753692"]
[WhiteElo "1216"]
[BlackElo "1208"]

1. e4 {[%clk 00:25:18]} {[%emt 00:00:02]} c6 {[%clk 00:25:19]} {[%emt
00:00:01]} 2. d4 {[%clk 00:25:26]} {[%emt 00:00:01]} d5 {[%clk 00:25:28]}
{[%emt 00:00:01]} 3. exd5 {[%clk 00:25:33]} {[%emt 00:00:03]} cxd5 {[%clk
00:25:35]} {[%emt 00:00:02]} 4. Nc3 {[%clk 00:25:42]} {[%emt 00:00:01]} Nf6
{[%clk 00:25:41]} {[%emt 00:00:04]} 5. Nf3 {[%clk 00:25:51]} {[%emt 00:00:02]}
Bg4 {[%clk 00:25:47]} {[%emt 00:00:03]} 6. Be2 {[%clk 00:25:58]} {[%emt
00:00:03]} e6 {[%clk 00:25:52]} {[%emt 00:00:04]} 7. O-O {[%clk 00:26:03]}
{[%emt 00:00:06]} Be7 {[%clk 00:25:53]} {[%emt 00:00:07]} 8. Bf4 {[%clk
00:26:07]} {[%emt 00:00:07]} O-O {[%clk 00:25:48]} {[%emt 00:00:15]} 9. Qd3
{[%clk 00:25:22]} {[%emt 00:00:56]} Nc6 {[%clk 00:25:11]} {[%emt 00:00:45]} 10.
Rfe1 {[%clk 00:25:04]} {[%emt 00:00:29]} a6 {[%clk 00:24:22]} {[%emt 00:00:57]}
11. Ne5 {[%clk 00:24:34]} {[%emt 00:00:42]} Bxe2 {[%clk 00:24:01]} {[%emt
00:00:31]} 12. Rxe2 {[%clk 00:24:42]} {[%emt 00:00:03]} Nxe5 {[%clk 00:24:01]}
{[%emt 00:00:10]} 13. Bxe5 {[%clk 00:24:50]} {[%emt 00:00:03]} Rc8 {[%clk
00:23:11]} {[%emt 00:00:51]} 14. Bxf6 {[%clk 00:24:02]} {[%emt 00:01:06]} Bxf6
{[%clk 00:23:14]} {[%emt 00:00:07]} 15. Re3 {[%clk 00:24:10]} {[%emt 00:00:02]}
Rc4 {[%clk 00:21:05]} {[%emt 00:02:18]} 16. Rh3 {[%clk 00:24:06]} {[%emt
00:00:15]} h6 {[%clk 00:20:52]} {[%emt 00:00:23]} 17. Ne2 {[%clk 00:24:15]}
{[%emt 00:00:02]} Qc7 {[%clk 00:18:47]} {[%emt 00:02:04]} 18. c3 {[%clk
00:24:16]} {[%emt 00:00:20]} Rc8 {[%clk 00:17:43]} {[%emt 00:01:07]} 19. b3
{[%clk 00:23:23]} {[%emt 00:01:09]} Rc6 {[%clk 00:17:29]} {[%emt 00:00:22]} 20.
Rc1 {[%clk 00:22:49]} {[%emt 00:00:45]} b5 {[%emt 00:01:18]} 21. Rf3 {[%clk
00:20:37]} {[%emt 00:01:44]} b4 {[%clk 00:15:40]} {[%emt 00:01:28]} 22. g3
{[%clk 00:19:49]} {[%emt 00:01:01]} bxc3 {[%clk 00:14:43]} {[%emt 00:01:05]} 23.
Rxc3 {[%clk 00:18:34]} {[%emt 00:01:26]} Rxc3 {[%clk 00:14:21]} {[%emt
00:00:32]} 24. Nxc3 {[%clk 00:18:36]} {[%emt 00:00:09]} Qb6 {[%clk 00:13:14]}
{[%emt 00:01:13]} 25. Ne2 {[%clk 00:18:34]} {[%emt 00:00:16]} Qb5 {[%clk
00:11:37]} {[%emt 00:01:43]} 26. Qd2 {[%clk 00:18:08]} {[%emt 00:00:38]} Bg5
{[%clk 00:09:18]} {[%emt 00:02:31]} 27. Qd1 {[%clk 00:16:53]} {[%emt 00:01:25]}
a5 {[%clk 00:06:57]} {[%emt 00:02:30]} 28. h4 {[%clk 00:16:39]} {[%emt
00:00:26]} Be7 {[%clk 00:06:14]} {[%emt 00:00:48]} 29. Kg2 {[%clk 00:12:55]}
{[%emt 00:03:58]} Qb4 {[%clk 00:04:58]} {[%emt 00:01:25]} 30. Rd3 {[%clk
00:09:12]} {[%emt 00:03:54]} Bf6 {[%clk 00:04:21]} {[%emt 00:00:47]} 31. Kg1
{[%clk 00:08:11]} {[%emt 00:01:11]} Qa3 {[%clk 00:03:13]} {[%emt 00:01:12]} 32.
Qb1 {[%clk 00:07:53]} {[%emt 00:00:34]} Be7 {[%clk 00:02:00]} {[%emt 00:01:19]}
33. Kg2 {[%clk 00:06:28]} {[%emt 00:01:38]} Qb4 {[%clk 00:01:21]} {[%emt
00:00:38]} 34. Kg1 {[%clk 00:06:36]} {[%emt 00:00:13]} a4 {[%clk 00:01:23]}
{[%emt 00:00:07]} 35. Qd1 {[%clk 00:06:08]} {[%emt 00:00:39]} axb3 {[%clk
00:01:18]} {[%emt 00:00:16]} 36. Rxb3 {[%clk 00:06:13]} {[%emt 00:00:05]} Qa5
{[%clk 00:01:01]} {[%emt 00:00:25]} 37. Rb7 {[%emt 00:01:02]} Ba3 {[%clk
00:00:44]} {[%emt 00:00:01]} 38. Nc3 {[%clk 00:05:13]} {[%emt 00:00:45]} Qxc3
{[%clk 00:00:44]} {[%emt 00:00:09]} 39. Kg2 {[%clk 00:05:13]} {[%emt 00:00:12]}
Bb4 {[%clk 00:00:49]} {[%emt 00:00:05]} 40. Qh5 {[%clk 00:05:08]} {[%emt
00:00:14]} Rf8 {[%clk 00:00:50]} {[%emt 00:00:07]} 41. Qg4 {[%clk 00:04:44]}
{[%emt 00:00:37]} Bd6 {[%clk 00:00:44]} {[%emt 00:00:12]} 42. Rb3 {[%clk
00:04:24]} {[%emt 00:00:34]} Qc7 {[%clk 00:00:47]} {[%emt 00:00:05]} 43. Rb2
{[%clk 00:04:28]} {[%emt 00:00:08]} Rb8 {[%clk 00:00:51]} {[%emt 00:00:05]} 44.
Re2 {[%clk 00:04:28]} {[%emt 00:00:11]} Qc4 {[%clk 00:00:52]} {[%emt 00:00:07]}
45. Rd2 {[%clk 00:03:49]} {[%emt 00:00:52]} Ra8 {[%clk 00:00:59]} {[%emt
00:00:02]} 46. Rb2 {[%clk 00:03:48]} {[%emt 00:00:11]} Rb8 {[%clk 00:01:05]}
{[%emt 00:00:04]} 47. Rd2 {[%clk 00:03:55]} {[%emt 00:00:03]} Qb4 {[%clk
00:01:07]} {[%emt 00:00:07]} 48. Qe2 {[%clk 00:03:52]} {[%emt 00:00:14]} Qc4
{[%clk 00:01:12]} {[%emt 00:00:05]} 49. Qd1 {[%clk 00:03:22]} {[%emt 00:00:41]}
Ra8 {[%clk 00:01:19]} {[%emt 00:00:03]} 50. Rc2 {[%clk 00:03:27]} {[%emt
00:00:04]} Qa6 {[%clk 00:01:15]} {[%emt 00:00:12]} 51. Qd2 {[%clk 00:03:20]}
{[%emt 00:00:18]} Rc8 {[%clk 00:01:15]} {[%emt 00:00:09]} 52. Rb2 {[%clk
00:03:19]} {[%emt 00:00:12]} Ba3 {[%clk 00:01:10]} {[%emt 00:00:15]} 53. Rb3
{[%clk 00:03:13]} {[%emt 00:00:17]} Bd6 {[%clk 00:01:01]} {[%emt 00:00:15]} 54.
Rb2 {[%clk 00:02:41]} {[%emt 00:00:46]} Qc4 {[%clk 00:01:01]} {[%emt 00:00:09]}
55. Rb6 {[%clk 00:02:26]} {[%emt 00:00:25]} Bc7 {[%clk 00:01:03]} {[%emt
00:00:07]} 56. Rb7 {[%clk 00:02:28]} {[%emt 00:00:09]} Rb8 {[%clk 00:00:56]}
{[%emt 00:00:14]} 57. Ra7 {[%clk 00:02:32]} {[%emt 00:00:10]} Bb6 {[%clk
00:00:55]} {[%emt 00:00:09]} 58. Re7 {[%clk 00:02:31]} {[%emt 00:00:12]} Qxd4
{[%clk 00:01:01]} {[%emt 00:00:06]} 59. Qe2 {[%clk 00:02:25]} {[%emt 00:00:16]}
Qe4+ {[%clk 00:01:07]} {[%emt 00:00:05]} 0-1



[ePGN "0.1;DGT LiveChess/2.2.6"]